bitfinex-derivatives/quotes_SOLF0:USTF0_20250528
["timestamp","ask_amount","ask_price","bid_price","bid_amount"]
[1748400274032,0.04148534,174.81,174.78,1.994]
[1748400275234,0.04148534,174.81,174.78,7.7126]
[1748400275436,0.04148534,174.81,174.77,32.07781499]
[1748400275832,5.7181,174.8,174.77,37.79681499]
[1748400276630,5.7184,174.79,174.77,32.07781499]
[1748400277137,0.04148534,174.81,174.77,32.07781499]
[1748400277332,5.7187,174.78,174.77,32.07781499]
[1748400277541,5.7187,174.78,174.77,0.03781499]
[1748400278532,239.0,174.8,174.77,0.03781499]
[1748400279335,5.7184,174.79,174.77,0.03781499]
[1748400280043,239.0,174.8,174.77,0.03781499]
[1748400280435,239.0,174.8,174.78,5.7187]
[1748400280639,239.0,174.8,174.77,0.03781499]
[1748400281242,239.0,174.8,174.77,5.75661499]
[1748400281636,239.0,174.8,174.77,0.03781499]
[1748400282134,239.0,174.8,174.78,5.7186]
[1748400282537,244.7181,174.8,174.77,5.75671499]
[1748400289651,244.7181,174.8,174.78,5.7187]
[1748400290050,239.0,174.8,174.78,5.7187]
[1748400291153,244.7181,174.8,174.77,5.75671499]
[1748400296850,5.7185,174.79,174.77,0.03781499]
[1748400297350,5.7185,174.79,174.77,5.75681499]
[1748400297745,244.7182,174.8,174.77,5.75681499]
[1748400298153,239.0,174.8,174.78,5.7186]
[1748400299551,244.7181,174.8,174.77,5.75671499]
[1748400300851,239.0,174.8,174.77,0.03781499]
[1748400301454,239.0,174.8,174.78,5.7184]
[1748400302745,239.0,174.8,174.77,0.03781499]
[1748400303346,6.66408945,174.81,174.63,11.4471]
[1748400303549,115.58,174.8,174.65,8.60010411]
[1748400303958,119.4086,174.8,174.71,5.7208]
[1748400304159,119.4086,174.8,174.72,31.6]
[1748400304360,5.7201,174.74,174.72,31.6]
[1748400304854,5.7203,174.73,174.72,31.6]
[1748400307251,5.7203,174.73,174.71,0.04258944]
[1748400307252,5.7207,174.72,174.71,0.04258944]
[1748400307457,6.62981603,174.73,174.66,31.6]
[1748400307657,6.62981603,174.7,174.65,31.6]
[1748400307859,6.62981603,174.7,174.61,115.38]
[1748400307860,6.62981603,174.7,174.66,31.6]
[1748400308061,5.7223,174.67,174.66,31.6]
[1748400308563,5.7226,174.66,174.65,0.04137007]
[1748400308964,0.03902739,174.68,174.65,0.04137007]
[1748400309471,5.76102739,174.68,174.65,0.04137007]
[1748400313571,5.7224,174.67,174.65,0.04137007]
[1748400314477,5.7226,174.66,174.65,0.04137007]
[1748400315174,5.7233,174.64,174.61,5.7241]
[1748400315378,6.62981603,174.67,174.6,31.62]
[1748400315576,5.7229,174.66,174.62,5.7236]
[1748400315977,6.62981603,174.67,174.62,5.7236]
[1748400316178,0.04053174,174.66,174.63,0.03672576]
[1748400316377,5.7233,174.64,174.63,0.03672576]
[1748400316774,0.04053174,174.66,174.63,0.03672576]
[1748400317275,0.04053174,174.66,174.64,5.7233]
[1748400318383,0.04053174,174.66,174.65,5.7229]
[1748400318981,0.04053174,174.66,174.64,5.7231]
[1748400322387,0.04053174,174.66,174.65,5.7229]
[1748400322888,0.04053174,174.66,174.63,0.03672576]
[1748400323387,0.04053174,174.66,174.64,5.723]
[1748400325292,5.76323174,174.66,174.64,5.723]
[1748400325791,5.76323174,174.66,174.63,5.76022576]
[1748400325984,5.723,174.65,174.63,5.76022576]
[1748400326384,0.04053174,174.66,174.63,5.76022576]
[1748400326584,5.76333174,174.66,174.63,5.76022576]
[1748400326785,0.04053174,174.66,174.64,5.7232]
[1748400327493,0.04053174,174.66,174.63,0.03672576]
[1748400328189,0.04053174,174.66,174.64,5.7233]
[1748400332095,5.76313174,174.66,174.64,5.7233]
[1748400332488,0.04053174,174.66,174.63,5.76022576]
[1748400332692,0.04053174,174.66,174.63,0.03672576]
[1748400333696,5.7233,174.64,174.63,0.03672576]
[1748400335092,5.7231,174.65,174.63,5.76032576]
[1748400336296,0.04053174,174.66,174.63,0.03672576]
[1748400337199,0.04053174,174.66,174.64,5.7231]
[1748400338997,5.76313174,174.66,174.64,5.7231]
[1748400341194,0.04053174,174.66,174.64,5.7231]
[1748400343494,5.76323174,174.66,174.63,5.76022576]
[1748400343800,0.04053174,174.66,174.63,5.76022576]
[1748400344203,31.06,174.76,174.64,145.42]
[1748400344402,31.06,174.76,174.64,147.4289]
[1748400344598,5.7206,174.73,174.7,5.7211]
[1748400345200,5.76454058,174.73,174.7,5.76201741]
[1748400346803,0.04394058,174.73,174.72,5.7206]
[1748400350408,6.62981603,174.83,174.76,5.7191]
[1748400350703,5.7187,174.78,174.76,5.7191]
[1748400351407,5.75578634,174.79,174.76,5.7191]
[1748400352905,5.7187,174.78,174.76,5.7191]
[1748400353211,5.7187,174.78,174.75,5.76260781]
[1748400353402,5.7192,174.77,174.75,0.04310781]
[1748400353598,0.03728634,174.79,174.75,0.04310781]
[1748400353807,6.62981603,174.77,174.75,7.81e-06]
[1748400354007,6.62981603,174.77,174.58,11.4501]
[1748400354008,270.06,174.76,174.64,32.9879]
[1748400354206,6.62981603,174.73,174.64,38.711]
[1748400354408,5.722,174.68,174.64,32.9879]
[1748400354705,6.62981603,174.73,174.64,38.7109]
[1748400354910,5.722,174.68,174.67,0.04311688]
[1748400355512,5.76234446,174.7,174.67,0.04311688]
[1748400355811,0.04084446,174.7,174.67,0.04311688]
[1748400356012,0.04084446,174.7,174.69,5.7216]
[1748400356508,0.04084446,174.7,174.67,0.04311688]
[1748400356911,5.76234446,174.7,174.67,0.04311688]
[1748400357110,5.76234446,174.7,174.67,5.76531688]
[1748400357610,5.7219,174.69,174.67,0.04311688]
[1748400358212,5.722,174.68,174.67,0.04311688]
[1748400359110,5.7219,174.69,174.67,0.04311688]
[1748400359616,0.04084446,174.7,174.67,0.04311688]
[1748400360115,0.04084446,174.7,174.69,5.7216]
[1748400360508,239.0,174.78,174.68,30.74]
[1748400360715,5.7198,174.75,174.72,5.7204]
[1748400361217,5.72,174.74,174.72,5.7204]
[1748400361413,239.0,174.78,174.72,5.7204]
[1748400361620,0.04078389,174.77,174.73,0.0414693]
[1748400363521,5.7197,174.75,174.73,0.0414693]
[1748400364119,0.04078389,174.77,174.73,0.0414693]
[1748400364120,5.72,174.74,174.73,0.0414693]
[1748400379442,239.0,174.76,174.73,0.0414693]
[1748400379443,5.7197,174.75,174.73,0.0414693]
[1748400379843,239.0,174.76,174.73,0.0414693]
[1748400380943,239.0,174.76,174.75,5.7197]
[1748400381243,0.04078389,174.77,174.73,0.0414693]
[1748400382041,5.75998389,174.77,174.74,5.7198]
[1748400382242,5.75998389,174.77,174.73,0.0414693]
[1748400382542,5.75998389,174.77,174.74,5.7199]
[1748400382943,5.75998389,174.77,174.73,0.0414693]
[1748400383545,5.75998389,174.77,174.74,5.7199]
[1748400383733,5.75998389,174.77,174.73,0.0414693]
[1748400383734,0.04078389,174.77,174.73,0.0414693]
[1748400384135,5.72,174.74,174.73,0.0414693]
[1748400384742,5.7198,174.75,174.73,0.0414693]
[1748400385042,0.04078389,174.77,174.73,0.0414693]
[1748400386045,5.72,174.74,174.73,0.0414693]
[1748400397049,5.7199,174.75,174.73,0.0414693]
[1748400397245,0.04078389,174.77,174.73,0.0414693]
[1748400397844,5.72,174.74,174.73,0.0414693]
[1748400404757,269.72,174.76,174.67,30.72]
[1748400404950,241.44484706,174.75,174.67,30.72]
[1748400405152,239.0,174.75,174.67,36.4422]
[1748400405351,5.7219,174.69,174.67,30.72]
[1748400405857,5.7219,174.69,174.67,36.4423]
[1748400406552,5.722,174.68,174.67,30.72]
[1748400406857,0.04203734,174.7,174.66,0.04324438]
[1748400407757,5.76363734,174.7,174.67,5.722]
[1748400408247,0.04203734,174.7,174.66,0.04324438]
[1748400408853,0.04203734,174.7,174.69,5.7216]
[1748400415260,0.04203734,174.7,174.68,36.4418]
[1748400419458,0.04203734,174.7,174.69,5.7216]
[1748400431272,239.0,174.77,174.68,37.34981603]
[1748400431475,239.0,174.8,174.68,37.34981603]
[1748400431661,5.7194,174.76,174.73,5.7201]
[1748400431862,239.0,174.8,174.72,30.7]
[1748400432063,5.7193,174.77,174.74,0.04115184]
[1748400432463,0.0410099,174.78,174.74,0.04115184]
[1748400432874,5.7194,174.76,174.74,0.04115184]
[1748400434778,0.0410099,174.78,174.74,0.04115184]
[1748400435875,5.7598099,174.78,174.75,5.7195]
[1748400436781,0.0410099,174.78,174.76,5.7193]
[1748400437377,5.7597099,174.78,174.75,5.7195]
[1748400442480,0.0410099,174.78,174.76,5.7193]
[1748400442881,0.0410099,174.78,174.75,5.7195]
[1748400443077,5.7597099,174.78,174.75,5.7195]
[1748400443271,5.7597099,174.78,174.74,0.04115184]
[1748400443272,0.0410099,174.78,174.74,0.04115184]
[1748400443581,0.0410099,174.78,174.75,5.7194]
[1748400445384,0.0410099,174.78,174.76,5.7193]
[1748400448687,0.0410099,174.78,174.74,0.04115184]
[1748400449583,4.24051983,174.75,174.74,0.04115184]
[1748400449787,4.24051983,174.75,174.69,30.7]
[1748400450081,5.7213,174.7,174.69,30.7]
[1748400450681,0.03733435,174.71,174.68,0.04235263]
[1748400450887,4.27785418,174.71,174.68,0.04235263]
[1748400451482,5.7215,174.7,174.68,0.04235263]
[1748400453881,5.7216,174.69,174.68,0.04235263]
[1748400460792,5.7214,174.7,174.68,0.04235263]
[1748400461183,0.03733435,174.71,174.68,0.04235263]
[1748400461793,5.7216,174.69,174.68,0.04235263]
[1748400464898,0.03733435,174.71,174.68,5.76425263]
[1748400465997,5.75833435,174.71,174.68,5.76425263]
[1748400470601,0.03733435,174.71,174.7,5.7213]
[1748400472104,0.03733435,174.71,174.68,0.04235263]
[1748400472802,0.03733435,174.71,174.69,5.7214]
[1748400474203,0.03733435,174.71,174.7,5.7213]
[1748400474403,0.03733435,174.71,174.68,0.04235263]
[1748400474804,0.03733435,174.71,174.69,5.7213]
[1748400475002,0.03733435,174.71,174.68,0.04235263]
[1748400475400,0.03733435,174.71,174.7,5.7213]
[1748400475903,0.03733435,174.71,174.69,30.66]
[1748400476100,0.03733435,174.71,174.69,36.3814]
[1748400477400,5.7213,174.7,174.69,30.66]
[1748400477595,4.24329576,174.7,174.68,0.04235263]
[1748400478000,0.03733435,174.71,174.68,0.04235263]
[1748400478204,5.7214,174.7,174.68,0.04235263]
[1748400481109,0.03733435,174.71,174.68,0.04235263]
[1748400481110,5.7216,174.69,174.68,0.04235263]
[1748400481310,0.03733435,174.71,174.68,0.04235263]
[1748400481716,0.03733435,174.71,174.68,5.76415263]
[1748400482316,5.75853435,174.71,174.68,5.76415263]
[1748400483911,5.7213,174.7,174.68,0.04235263]
[1748400484123,0.03733435,174.71,174.68,0.04235263]
[1748400485018,5.75853435,174.71,174.68,5.76425263]
[1748400485220,0.03733435,174.71,174.68,0.04235263]
[1748400487219,0.03733435,174.71,174.7,5.7213]
[1748400491316,5.7195,174.76,174.72,5.7204]
[1748400492420,5.7580022,174.76,174.72,5.76234113]
[1748400493325,0.0385022,174.76,174.72,0.04194113]
[1748400493527,0.0385022,174.76,174.72,4.28523689]
[1748400493826,0.0385022,174.76,174.73,30.6]
[1748400494025,0.0385022,174.76,174.74,4.24329576]
[1748400494328,0.0385022,174.76,174.73,34.84329576]
[1748400496028,0.0385022,174.76,174.73,30.6]
[1748400496424,0.0385022,174.76,174.74,5.7199]
[1748400496726,0.0385022,174.76,174.73,30.6]
[1748400498426,0.0385022,174.76,174.75,5.7197]
[1748400501022,239.0,174.81,174.78,5.7185]
[1748400501221,239.0,174.84,174.78,4.24329576]
[1748400501424,239.0,174.84,174.77,30.6]
[1748400501632,239.0,174.84,174.79,5.7181]
[1748400501931,244.717,174.84,174.77,30.6]
[1748400502126,0.04203989,174.82,174.79,0.0417962]
[1748400503125,5.75953989,174.82,174.79,0.0417962]
[1748400503333,0.04203989,174.82,174.79,0.0417962]
[1748400504132,5.7179,174.81,174.79,0.0417962]
[1748400505634,5.718,174.8,174.79,0.0417962]
[1748400509338,5.7178,174.81,174.79,0.0417962]
[1748400513942,5.718,174.8,174.79,0.0417962]
[1748400514940,5.7178,174.81,174.79,0.0417962]
[1748400515945,5.718,174.8,174.79,0.0417962]
[1748400517140,0.04203989,174.82,174.79,5.7600962]
[1748400517845,0.04203989,174.82,174.79,0.0417962]
[1748400519144,5.75943989,174.82,174.79,0.0417962]
[1748400519541,6.62225447,174.8,174.7,498.2158]
[1748400519845,6.62225447,174.8,174.7,30.56]
[1748400520046,5.7194,174.76,174.71,5.7209]
[1748400520249,1.9304,174.79,174.7,30.56]
[1748400520442,239.0,174.86,174.7,30.56]
[1748400520749,239.0,174.86,174.76,0.04387055]
[1748400520750,0.03794239,174.8,174.76,0.04387055]
[1748400520950,0.03794239,174.8,174.76,30.60387055]
[1748400521248,0.03794239,174.8,174.78,5.7184]
[1748400523345,0.03794239,174.8,174.76,30.60387055]
[1748400523346,0.03794239,174.8,174.79,5.7184]
[1748400523642,0.03794239,174.8,174.76,30.60387055]
[1748400523842,0.03794239,174.8,174.79,5.7184]
[1748400524547,1.9304,174.86,174.76,30.60387055]
[1748400524747,5.7165,174.85,174.76,37.22612502]
[1748400525342,0.0435342,174.82,174.76,37.22612502]
[1748400525547,0.0435342,174.82,174.81,5.7177]
[1748400528446,0.0435342,174.82,174.8,5.75494918]
[1748400529454,0.0435342,174.82,174.8,0.03704918]
[1748400530254,0.0435342,174.82,174.8,5.75504918]
[1748400530854,0.0435342,174.82,174.81,5.7177]
[1748400536458,0.0435342,174.82,174.8,30.59704918]
[1748400538058,5.7609342,174.82,174.8,30.59704918]
[1748400538255,0.0435342,174.82,174.8,30.59704918]
[1748400540255,5.7610342,174.82,174.8,30.59704918]
[1748400540456,0.0435342,174.82,174.8,0.03704918]
[1748400540759,5.7177,174.81,174.8,0.03704918]
[1748400543662,5.7610342,174.82,174.8,0.03704918]
[1748400544468,5.7177,174.81,174.8,0.03704918]
[1748400547360,0.0435342,174.82,174.73,30.6]
[1748400547563,5.7189,174.78,174.73,30.6]
[1748400547765,239.0,174.83,174.73,30.6]
[1748400547967,5.7185,174.79,174.76,5.7192]
[1748400548464,5.7185,174.79,174.76,5.76171703]
[1748400548465,5.75688607,174.79,174.76,5.76171703]
[1748400548766,5.75688607,174.79,174.76,0.04251703]
[1748400551562,0.03838607,174.79,174.76,0.04251703]
[1748400552361,0.03838607,174.79,174.78,5.7187]
[1748400552664,0.03838607,174.79,174.77,30.6]
[1748400552863,5.719,174.78,174.76,0.04251703]
[1748400553867,0.03838607,174.79,174.76,0.04251703]
[1748400553868,5.719,174.77,174.76,0.04251703]
[1748400555566,5.7188,174.78,174.76,0.04251703]
[1748400556269,0.03838607,174.79,174.76,0.04251703]
[1748400557065,0.03838607,174.79,174.77,5.7188]
[1748400557268,0.03838607,174.79,174.76,0.04251703]
[1748400557666,0.03838607,174.79,174.78,5.7187]
[1748400558065,0.03838607,174.79,174.78,9.95683142]
[1748400558872,0.03838607,174.79,174.78,40.55683142]
[1748400559965,5.7172,174.83,174.78,36.3187]
[1748400560169,239.0,174.94,174.82,6.62092778]
[1748400560374,2.44409416,174.93,174.82,37.22092778]
[1748400560563,5.715,174.9,174.86,5.7159]
[1748400560763,3.9474,174.94,174.83,1.8668]
[1748400560962,0.04281148,174.9,174.83,1.8668]
[1748400561166,5.7155,174.88,174.87,0.03993621]
[1748400572078,5.7155,174.88,174.87,3.621e-05]
[1748400572973,8.16210302,174.88,174.71,30.6]
[1748400573175,6.62092778,174.83,174.71,30.6]
[1748400573475,5.719,174.77,174.71,30.6]
[1748400573671,6.62641957,174.83,174.74,5.7198]
[1748400573973,0.03895914,174.8,174.77,0.04309998]
[1748400574574,5.7187,174.78,174.77,0.04309998]
[1748400575871,0.03895914,174.8,174.77,0.04309998]
[1748400576472,0.03895914,174.8,174.77,5.76199998]
[1748400577178,0.03895914,174.8,174.78,5.7187]
[1748400577380,0.03895914,174.8,174.79,30.56]
[1748400581476,0.03895914,174.8,174.79,36.2784]
[1748400583781,0.03895914,174.8,174.79,30.56]
[1748400584977,0.03895914,174.8,174.79,36.2784]
[1748400585982,0.03895914,174.8,174.79,30.56]
[1748400586187,0.03895914,174.8,174.77,30.60309998]
[1748400586686,5.75715914,174.8,174.77,36.32209998]
[1748400588286,5.75715914,174.8,174.78,5.7187]
[1748400588486,0.03895914,174.8,174.78,5.7187]
[1748400591189,0.03895914,174.8,174.79,5.7184]
[1748400592487,30.56,174.89,174.81,5.7176]
[1748400592686,5.7167,174.85,174.81,5.7176]
[1748400593393,5.75512476,174.85,174.81,5.75725322]
[1748400593692,5.7168,174.84,174.81,5.75725322]
[1748400594693,5.7168,174.84,174.81,36.31725322]
[1748400595994,5.75492476,174.85,174.82,5.7174]
[1748400596492,5.75492476,174.85,174.81,30.59965322]
[1748400596994,5.7168,174.84,174.81,36.31715322]
[1748400599194,5.7168,174.84,174.82,5.7173]
[1748400600393,0.03842476,174.85,174.81,30.59965322]
[1748400600792,0.03842476,174.85,174.84,5.7167]
[1748400600997,0.03842476,174.85,174.81,30.59965322]
[1748400601499,0.03842476,174.85,174.81,36.31715322]
[1748400601895,5.75512476,174.85,174.81,36.31715322]
[1748400602095,5.75512476,174.85,174.82,5.7174]
[1748400602398,5.75512476,174.85,174.81,30.59965322]
[1748400602593,5.7169,174.84,174.81,36.31715322]
[1748400602898,0.03842476,174.85,174.81,30.59965322]
[1748400603202,5.7172,174.83,174.81,30.59965322]
[1748400604598,5.7169,174.84,174.81,36.31735322]
[1748400604799,5.7169,174.84,174.81,30.59965322]
[1748400604998,5.7171,174.83,174.81,30.59965322]
[1748400605602,5.7174,174.82,174.81,0.03965322]
[1748400607293,3.9973,174.84,174.76,30.54]
[1748400607502,3.9973,174.84,174.76,36.2593]
[1748400608304,0.04327339,174.82,174.78,0.04170666]
[1748400609399,5.7186,174.79,174.78,0.04170666]
[1748400619519,5.7199,174.75,174.7,30.54]
[1748400619712,5.7199,174.75,174.7,36.2611]
[1748400620017,6.62543931,174.78,174.7,30.54]
[1748400620314,0.04007013,174.76,174.72,5.76126431]
[1748400621109,5.7202,174.74,174.72,0.04066431]
[1748400621708,5.7203,174.73,174.72,0.04066431]
[1748400627316,5.7215,174.7,174.68,30.54]
[1748400627908,5.7216,174.69,174.68,30.54]
[1748400628113,0.04272433,174.7,174.68,30.54]
[1748400629120,5.7216,174.69,174.68,30.54]
[1748400629519,0.04272433,174.7,174.67,0.0427615]
[1748400630124,5.7216,174.69,174.67,0.0427615]
[1748400630621,5.722,174.68,174.67,0.0427615]
[1748400630816,0.04272433,174.7,174.67,0.0427615]
[1748400632115,5.7219,174.69,174.67,0.0427615]
[1748400640830,239.0,174.77,174.67,5.7627615]
[1748400641020,4.0248,174.84,174.68,10.58483931]
[1748400641222,5.7186,174.79,174.73,5.7202]
[1748400641419,5.7186,174.79,174.69,149.7]
[1748400641623,10.65023931,174.84,174.69,149.7]
[1748400642026,5.75817357,174.78,174.75,0.04146335]
[1748400642426,0.03937357,174.78,174.75,0.04146335]
[1748400643834,5.75817357,174.78,174.75,0.04146335]
[1748400646932,0.03937357,174.78,174.75,0.04146335]
[1748400647434,0.03937357,174.78,174.75,5.76106335]
[1748400647731,0.03937357,174.78,174.75,0.04146335]
[1748400649039,0.03937357,174.78,174.76,5.7193]
[1748400650036,0.03937357,174.78,174.75,0.04146335]
[1748400650037,0.03937357,174.78,174.77,5.719]
[1748400650433,0.03937357,174.78,174.75,0.04146335]
[1748400651329,0.03937357,174.78,174.76,5.7193]
[1748400651637,0.03937357,174.78,174.75,0.04146335]
[1748400652336,0.03937357,174.78,174.75,5.76096335]
[1748400653343,0.03937357,174.78,174.77,5.719]
[1748400654335,5.7175,174.82,174.75,0.04146335]
[1748400655339,0.04332652,174.8,174.78,5.7185]
[1748400657837,0.04332652,174.8,174.75,0.04146335]
[1748400658335,5.7185,174.79,174.75,5.76096335]
[1748400660332,5.7185,174.79,174.76,5.7193]
[1748400663642,5.7185,174.79,174.75,5.76096335]
[1748400663940,0.04332652,174.8,174.75,5.76096335]
[1748400664244,5.7187,174.78,174.75,5.76096335]
[1748400668741,5.7185,174.79,174.75,5.76096335]
[1748400669540,5.7185,174.79,174.76,5.7192]
[1748400670145,5.76152652,174.8,174.75,0.04146335]
[1748400670944,5.76152652,174.8,174.77,5.719]
[1748400671346,5.76152652,174.8,174.75,0.04146335]
[1748400671749,5.76152652,174.8,174.76,5.7191]
[1748400673553,5.7184,174.79,174.76,5.7191]
[1748400681359,5.719,174.78,174.75,5.76106335]
[1748400681565,0.04332652,174.8,174.75,0.04146335]
[1748400681765,4.2398569,174.79,174.75,0.04146335]
[1748400682070,5.719,174.78,174.75,0.04146335]
[1748400682667,4.2398569,174.79,174.75,0.04146335]
[1748400683467,5.7194,174.76,174.75,0.04146335]
[1748400685866,5.7192,174.77,174.75,0.04146335]
[1748400686063,239.0,174.79,174.75,0.04146335]
[1748400686676,5.7188,174.78,174.75,5.76106335]
[1748400688372,5.7188,174.78,174.75,0.04146335]
[1748400689776,5.7188,174.78,174.75,5.76096335]
[1748400690972,5.719,174.77,174.75,0.04146335]
[1748400691280,239.0,174.79,174.75,0.04146335]
[1748400691476,5.7189,174.78,174.75,5.76106335]
[1748400691671,5.7189,174.78,174.75,0.04146335]
[1748400695075,5.7191,174.77,174.75,0.04146335]
[1748400695879,5.7188,174.78,174.75,0.04146335]
[1748400696581,5.7191,174.77,174.75,0.04146335]
[1748400697177,5.7194,174.76,174.75,0.04146335]
[1748400699974,5.7205,174.73,174.69,31.8]
[1748400700178,5.7205,174.73,174.7,5.7211]
[1748400700775,5.7205,174.73,174.71,5.721]
[1748400701081,5.75972426,174.74,174.71,5.721]
[1748400701383,5.75972426,174.74,174.7,0.037031]
[1748400701580,5.75972426,174.74,174.71,5.7209]
[1748400705084,5.75972426,174.74,174.7,5.758231]
[1748400705583,0.03962426,174.74,174.7,0.037031]
[1748400705882,0.03962426,174.74,174.7,4.2784479]
[1748400706086,0.03962426,174.74,174.72,5.7204]
[1748400706684,0.03962426,174.74,174.71,5.7209]
[1748400706880,0.03962426,174.74,174.7,4.2784479]
[1748400707076,0.03962426,174.74,174.7,0.037031]
[1748400707284,0.03962426,174.74,174.7,5.758131]
[1748400707688,5.75982426,174.74,174.7,5.758131]
[1748400708084,5.75982426,174.74,174.71,5.7209]
[1748400708689,5.7204,174.73,174.7,5.758231]
[1748400708988,0.03962426,174.74,174.7,0.037031]
[1748400710488,5.7205,174.73,174.7,5.758331]
[1748400711290,5.75972426,174.74,174.71,5.7209]
[1748400711681,0.03962426,174.74,174.7,0.037031]
[1748400711887,5.75962426,174.74,174.71,5.7208]
[1748400712389,5.75962426,174.74,174.71,5.7207]
[1748400713990,0.03962426,174.74,174.72,5.7206]
[1748400714188,0.03962426,174.74,174.7,0.037031]
[1748400715895,5.75962426,174.74,174.7,0.037031]
[1748400716088,4.2414169,174.72,174.7,0.037031]
[1748400716799,5.721,174.71,174.7,0.037031]
[1748400719201,9.9622169,174.72,174.7,0.037031]
[1748400719695,4.2414169,174.72,174.7,5.758331]
[1748400720490,9.9621169,174.72,174.7,5.758331]
[1748400720998,5.7207,174.72,174.7,5.758331]
[1748400721689,248.9619169,174.73,174.7,5.758331]
[1748400721892,243.2414169,174.73,174.7,0.037031]
[1748400722895,5.7209,174.72,174.7,0.037031]
[1748400724799,0.03962426,174.74,174.7,4.2784479]
[1748400725293,0.03962426,174.74,174.72,5.7205]
[1748400725492,0.03962426,174.74,174.7,0.037031]
[1748400725898,4.2414169,174.73,174.7,0.037031]
[1748400726499,9.9620169,174.73,174.7,0.037031]
[1748400727996,0.03962426,174.74,174.7,0.037031]
[1748400728395,0.03962426,174.74,174.71,5.7207]
[1748400729994,0.03962426,174.74,174.72,5.7206]
[1748400730190,0.03962426,174.74,174.7,0.037031]
[1748400730595,5.75982426,174.74,174.7,0.037031]
[1748400731902,5.75982426,174.74,174.71,5.7208]
[1748400734104,5.7203,174.73,174.7,5.758231]
[1748400735303,5.75972426,174.74,174.71,5.721]
[1748400737600,5.7204,174.73,174.7,0.037031]
[1748400737807,5.7204,174.73,174.7,5.758231]
[1748400738005,0.03962426,174.74,174.7,5.758231]
[1748400738313,0.03962426,174.74,174.7,0.037031]
[1748400738314,5.721,174.71,174.7,0.037031]
[1748400741404,9.9624169,174.71,174.7,0.037031]
[1748400749912,5.7222,174.68,174.65,5.7228]
[1748400750616,4.2414169,174.71,174.64,36.3632]
[1748400750918,4.2414169,174.69,174.65,30.64]
[1748400751217,4.28148434,174.69,174.65,0.04232679]
[1748400751518,4.28148434,174.69,174.65,5.76522679]
[1748400752915,5.7222,174.68,174.65,5.76522679]
[1748400753315,5.7222,174.68,174.66,5.7226]
[1748400753717,5.7222,174.68,174.65,0.04232679]
[1748400754721,5.7222,174.68,174.65,30.68232679]
[1748400754910,5.7222,174.68,174.65,5.76512679]
[1748400755422,0.04006744,174.69,174.65,30.68232679]
[1748400755620,0.04006744,174.69,174.66,5.7226]
[1748400755820,5.76176744,174.69,174.66,5.7226]
[1748400756023,0.04006744,174.69,174.66,5.7226]
[1748400756322,5.76176744,174.69,174.66,5.7226]
[1748400758624,5.76176744,174.69,174.67,5.7223]
[1748400758823,5.76176744,174.69,174.65,30.68232679]
[1748400759224,5.76176744,174.69,174.66,5.7224]
[1748400759425,0.04006744,174.69,174.65,30.68232679]
[1748400760127,5.76186744,174.69,174.66,5.7224]
[1748400760819,5.722,174.68,174.65,36.40522679]
[1748400761126,0.04006744,174.69,174.65,30.68232679]
[1748400761326,5.7222,174.68,174.65,36.40512679]
[1748400763822,5.7223,174.67,174.65,36.40512679]
[1748400764029,5.7223,174.67,174.65,30.68232679]
[1748400765327,5.7221,174.68,174.65,30.68232679]
[1748400765519,0.04006744,174.69,174.65,30.68232679]
[1748400766126,0.04006744,174.69,174.66,5.7224]
[1748400766326,0.04006744,174.69,174.65,30.68232679]
[1748400766529,5.722,174.68,174.65,36.40512679]
[1748400767027,0.04006744,174.69,174.65,30.68232679]
[1748400767322,5.722,174.68,174.65,30.68232679]
[1748400767726,5.722,174.68,174.65,36.40512679]
[1748400768433,0.04006744,174.69,174.65,36.40512679]
[1748400768821,5.7222,174.68,174.65,36.40512679]
[1748400769028,0.04006744,174.69,174.65,36.40512679]
[1748400769327,5.7222,174.68,174.65,36.40512679]
[1748400770030,5.7222,174.68,174.66,5.7226]
[1748400771929,5.7222,174.68,174.65,36.40522679]
[1748400772128,5.7224,174.67,174.65,36.40522679]
[1748400773834,5.7224,174.67,174.65,30.68232679]
[1748400775236,5.7222,174.68,174.65,30.68232679]
[1748400776236,5.7223,174.67,174.65,30.68232679]
[1748400779843,5.7221,174.68,174.65,36.40512679]
[1748400780542,5.7224,174.67,174.65,30.68232679]